[Event "*** Titled Tuesday Blitz"]
[Site "Chess.com"]
[Date "2020.05.05"]
[Round "1"]
[White "hongnhung1234"]
[Black "Zq1"]
[Result "1/2-1/2"]
[WhiteElo "2208"]
[BlackElo "2540"]
[TimeControl "180+1"]
[EndTime "10:07:45 PDT"]
[Termination "Game drawn by repetition"]

1. e4 {[%clk 0:02:58.5]} 1... c5 {[%clk 0:02:59.4]} 2. Nc3 {[%clk 0:02:57.9]}
2... g6 {[%clk 0:02:58.5]} 3. f4 {[%clk 0:02:58.1]} 3... Bg7 {[%clk 0:02:58.1]}
4. Nf3 {[%clk 0:02:58.5]} 4... Nc6 {[%clk 0:02:58.2]} 5. Bc4 {[%clk 0:02:58.8]}
5... e6 {[%clk 0:02:57.9]} 6. O-O {[%clk 0:02:59.3]} 6... Nge7 {[%clk
0:02:57.7]} 7. d3 {[%clk 0:02:59.8]} 7... O-O {[%clk 0:02:57.3]} 8. Qe1 {[%clk
0:02:59.6]} 8... a6 {[%clk 0:02:56.1]} 9. a4 {[%clk 0:02:59.3]} 9... d5 {[%clk
0:02:55.3]} 10. Bb3 {[%clk 0:02:59.5]} 10... Nd4 {[%clk 0:02:54.7]} 11. Nxd4
{[%clk 0:02:59.3]} 11... cxd4 {[%clk 0:02:54]} 12. Ne2 {[%clk 0:02:59.8]} 12...
dxe4 {[%clk 0:02:53.7]} 13. dxe4 {[%clk 0:03:00.7]} 13... d3 {[%clk 0:02:52.4]}
14. Nc3 {[%clk 0:03:00.9]} 14... Nc6 {[%clk 0:02:46.7]} 15. Be3 {[%clk
0:02:53.3]} 15... Nd4 {[%clk 0:02:43.7]} 16. Rd1 {[%clk 0:02:38.8]} 16... dxc2
{[%clk 0:02:37.1]} 17. Bxc2 {[%clk 0:02:28.2]} 17... Nxc2 {[%clk 0:02:36.1]} 18.
Rxd8 {[%clk 0:02:28.7]} 18... Nxe1 {[%clk 0:02:35.9]} 19. Rxf8+ {[%clk
0:02:28.8]} 19... Kxf8 {[%clk 0:02:31.2]} 20. Rxe1 {[%clk 0:02:29.7]} 20... Bxc3
{[%clk 0:02:27.6]} 21. bxc3 {[%clk 0:02:29.1]} 21... Bd7 {[%clk 0:02:28.1]} 22.
a5 {[%clk 0:02:17.2]} 22... Bc6 {[%clk 0:02:27.8]} 23. Bc5+ {[%clk 0:02:15.2]}
23... Ke8 {[%clk 0:02:27.1]} 24. Rd1 {[%clk 0:02:15]} 24... Bxe4 {[%clk
0:02:24.5]} 25. Rd4 {[%clk 0:02:11.3]} 25... Rc8 {[%clk 0:02:16.7]} 26. Bb6
{[%clk 0:02:05.8]} 26... Bd5 {[%clk 0:02:14.5]} 27. Rd3 {[%clk 0:02:04.6]} 27...
h5 {[%clk 0:02:13]} 28. Kf2 {[%clk 0:02:03.8]} 28... Rc4 {[%clk 0:02:08.6]} 29.
g3 {[%clk 0:01:56.7]} 29... Ra4 {[%clk 0:02:04]} 30. Ke3 {[%clk 0:01:47.4]}
30... Kd7 {[%clk 0:01:58.6]} 31. Rd4 {[%clk 0:01:43]} 31... Ra3 {[%clk
0:01:49.3]} 32. Rd3 {[%clk 0:01:21.6]} 32... Ra4 {[%clk 0:01:25.8]} 33. Rd4
{[%clk 0:01:20]} 33... Rc4 {[%clk 0:01:25.5]} 34. Rxc4 {[%clk 0:01:16.9]} 34...
Bxc4 {[%clk 0:01:25.2]} 35. Kd4 {[%clk 0:01:17.4]} 35... Bd5 {[%clk 0:01:25.2]}
36. c4 {[%clk 0:01:14.4]} 36... Bc6 {[%clk 0:01:22.1]} 37. Ke5 {[%clk
0:01:12.6]} 37... Bg2 {[%clk 0:01:20.2]} 38. Kf6 {[%clk 0:01:10.6]} 38... Ke8
{[%clk 0:01:19.9]} 39. Bd4 {[%clk 0:01:08.5]} 39... Bf1 {[%clk 0:01:19]} 40. c5
{[%clk 0:01:07.9]} 40... Bc4 {[%clk 0:01:17.9]} 41. Be5 {[%clk 0:01:07.3]} 41...
Bd3 {[%clk 0:01:12.3]} 42. Bc7 {[%clk 0:01:06.9]} 42... Bf5 {[%clk 0:01:11.4]}
43. Bb6 {[%clk 0:01:05.2]} 43... Kd7 {[%clk 0:01:10.3]} 44. Kxf7 {[%clk
0:01:04.9]} 44... Kc6 {[%clk 0:01:10.2]} 45. Kf6 {[%clk 0:01:05]} 45... Kd5
{[%clk 0:01:10.1]} 46. Kg5 {[%clk 0:01:04.7]} 46... Ke4 {[%clk 0:01:10]} 47. Kh4
{[%clk 0:01:01.3]} 47... Kf3 {[%clk 0:01:09.6]} 48. h3 {[%clk 0:00:53.3]} 48...
Bd3 {[%clk 0:01:02.8]} 49. Bc7 {[%clk 0:00:50.7]} 49... Kg2 {[%clk 0:00:58.2]}
50. g4 {[%clk 0:00:48.8]} 50... hxg4 {[%clk 0:00:56.3]} 51. hxg4 {[%clk
0:00:49.4]} 51... Kf3 {[%clk 0:00:55.2]} 52. Kg5 {[%clk 0:00:46.5]} 52... Ke3
{[%clk 0:00:51.6]} 53. Kf6 {[%clk 0:00:45.6]} 53... Kf3 {[%clk 0:00:51.2]} 54.
Kxe6 {[%clk 0:00:41]} 54... Kxg4 {[%clk 0:00:50.9]} 55. Kd7 {[%clk 0:00:40.6]}
55... Be4 {[%clk 0:00:48]} 56. Ke6 {[%clk 0:00:36.7]} 56... Bf5+ {[%clk
0:00:47.9]} 57. Kd6 {[%clk 0:00:35.7]} 57... Kf3 {[%clk 0:00:47.2]} 58. Ke7
{[%clk 0:00:30.3]} 58... Be4 {[%clk 0:00:46.4]} 59. Kf6 {[%clk 0:00:30.3]} 59...
Ke3 {[%clk 0:00:45]} 60. Bb6 {[%clk 0:00:28.8]} 60... Kd3 {[%clk 0:00:42.8]} 61.
Ke5 {[%clk 0:00:26.6]} 61... Bf5 {[%clk 0:00:41.7]} 62. Kd6 {[%clk 0:00:23.6]}
62... Be4 {[%clk 0:00:39.7]} 63. Ke5 {[%clk 0:00:23.2]} 63... Bc6 {[%clk
0:00:39.4]} 64. Kf6 {[%clk 0:00:22.4]} 64... Be8 {[%clk 0:00:38.4]} 65. Ke7
{[%clk 0:00:22.5]} 65... Bc6 {[%clk 0:00:38.3]} 66. Kf6 {[%clk 0:00:22.9]} 66...
Be4 {[%clk 0:00:38.5]} 67. Ke5 {[%clk 0:00:23]} 1/2-1/2

[Event "*** Titled Tuesday Blitz"]
[Site "Chess.com"]
[Date "2020.05.05"]
[Round "1"]
[White "MPGM"]
[Black "tamarozi99"]
[Result "1-0"]
[WhiteElo "2481"]
[BlackElo "2007"]
[TimeControl "180+1"]
[EndTime "10:07:45 PDT"]
[Termination "MPGM won by resignation"]

1. d4 {[%clk 0:03:00.5]} 1... Nf6 {[%clk 0:02:59.2]} 2. Bg5 {[%clk 0:02:58.9]}
2... g6 {[%clk 0:02:58.3]} 3. Nd2 {[%clk 0:02:57.2]} 3... Bg7 {[%clk 0:02:55.1]}
4. e4 {[%clk 0:02:53.6]} 4... d6 {[%clk 0:02:49.6]} 5. Bd3 {[%clk 0:02:48]} 5...
Nbd7 {[%clk 0:02:41.4]} 6. Ngf3 {[%clk 0:02:45.9]} 6... e5 {[%clk 0:02:25.7]} 7.
c3 {[%clk 0:02:40.4]} 7... O-O {[%clk 0:02:24.7]} 8. O-O {[%clk 0:02:39.5]} 8...
h6 {[%clk 0:02:18.2]} 9. Bh4 {[%clk 0:02:39.3]} 9... Re8 {[%clk 0:02:04.7]} 10.
Re1 {[%clk 0:02:38.4]} 10... g5 {[%clk 0:01:57.3]} 11. Bg3 {[%clk 0:02:36]}
11... Nh5 {[%clk 0:01:48.4]} 12. a4 {[%clk 0:02:23.3]} 12... a5 {[%clk
0:01:35.5]} 13. dxe5 {[%clk 0:02:20.3]} 13... Nxg3 {[%clk 0:01:34.3]} 14. hxg3
{[%clk 0:02:17.1]} 14... Nxe5 {[%clk 0:01:25]} 15. Nxe5 {[%clk 0:02:16.6]} 15...
Bxe5 {[%clk 0:01:18.6]} 16. Be2 {[%clk 0:02:14.2]} 16... Bg7 {[%clk 0:01:10.7]}
17. Bg4 {[%clk 0:02:11.9]} 17... Be6 {[%clk 0:01:07]} 18. Qf3 {[%clk 0:02:02.5]}
18... Bxg4 {[%clk 0:01:06.4]} 19. Qxg4 {[%clk 0:02:02.3]} 19... Qf6 {[%clk
0:01:06.5]} 20. Re3 {[%clk 0:01:42.8]} 20... Re6 {[%clk 0:01:05.3]} 21. Rf3
{[%clk 0:01:38.3]} 21... Qg6 {[%clk 0:01:03.7]} 22. Rf5 {[%clk 0:01:38.7]} 22...
Rae8 {[%clk 0:00:58.3]} 23. Rxa5 {[%clk 0:01:35.5]} 23... Bf6 {[%clk 0:00:51.7]}
24. Rf5 {[%clk 0:01:31.2]} 24... h5 {[%clk 0:00:48.8]} 25. Qf3 {[%clk
0:01:27.4]} 25... g4 {[%clk 0:00:40]} 26. Qf4 {[%clk 0:01:27.2]} 26... Be5
{[%clk 0:00:39.9]} 27. Qe3 {[%clk 0:01:25.5]} 27... Bf6 {[%clk 0:00:31.6]} 28.
Qf4 {[%clk 0:01:21.5]} 28... Be5 {[%clk 0:00:31.5]} 29. Qg5 {[%clk 0:01:19]}
29... Qxg5 {[%clk 0:00:25]} 30. Rxg5+ {[%clk 0:01:19.9]} 30... Kh7 {[%clk
0:00:17.9]} 31. Rxh5+ {[%clk 0:01:19.6]} 31... Kg6 {[%clk 0:00:17.9]} 32. Rf5
{[%clk 0:01:16.4]} 32... Rh8 {[%clk 0:00:17.8]} 33. Re1 {[%clk 0:01:08.5]} 33...
d5 {[%clk 0:00:12.5]} 34. exd5 {[%clk 0:01:05.7]} 34... Kxf5 {[%clk 0:00:11.8]}
35. dxe6 {[%clk 0:01:05.5]} 35... fxe6 {[%clk 0:00:12.7]} 36. Nc4 {[%clk
0:00:56.5]} 36... Bf6 {[%clk 0:00:12.1]} 37. a5 {[%clk 0:00:51.8]} 37... Ra8
{[%clk 0:00:11.7]} 38. Kf1 {[%clk 0:00:45.9]} 38... Rd8 {[%clk 0:00:11.6]} 39.
Ke2 {[%clk 0:00:44.1]} 39... e5 {[%clk 0:00:11.4]} 40. Rh1 {[%clk 0:00:42.2]}
40... Rd5 {[%clk 0:00:09.5]} 41. Ne3+ {[%clk 0:00:40.1]} 41... Ke6 {[%clk
0:00:09.2]} 42. Nxd5 {[%clk 0:00:41]} 42... Kxd5 {[%clk 0:00:09.6]} 43. Rh6
{[%clk 0:00:40.8]} 43... Be7 {[%clk 0:00:08.8]} 44. Rg6 {[%clk 0:00:40.9]} 44...
Kc4 {[%clk 0:00:06]} 45. Rxg4+ {[%clk 0:00:41]} 45... Kb3 {[%clk 0:00:06.3]} 46.
Rg7 {[%clk 0:00:41]} 46... Bd6 {[%clk 0:00:06.5]} 47. g4 {[%clk 0:00:40.1]}
47... Kxb2 {[%clk 0:00:06.8]} 48. g5 {[%clk 0:00:40.6]} 48... Kxc3 {[%clk
0:00:06.7]} 49. g6 {[%clk 0:00:41.1]} 49... e4 {[%clk 0:00:05.9]} 50. Rxc7+
{[%clk 0:00:40.2]} 50... Bxc7 {[%clk 0:00:03.5]} 51. g7 {[%clk 0:00:40.6]} 51...
Bxa5 {[%clk 0:00:03.9]} 52. g8=Q {[%clk 0:00:41.5]} 52... b5 {[%clk 0:00:03.6]}
53. Qd5 {[%clk 0:00:40.4]} 53... Bb4 {[%clk 0:00:02.3]} 54. g4 {[%clk
0:00:38.7]} 1-0

[Event "*** Titled Tuesday Blitz"]
[Site "Chess.com"]
[Date "2020.05.05"]
[Round "1"]
[White "harvsp123"]
[Black "Larina_Marija"]
[Result "1-0"]
[WhiteElo "2523"]
[BlackElo "2149"]
[TimeControl "180+1"]
[EndTime "10:07:46 PDT"]
[Termination "harvsp123 won on time"]

1. d4 {[%clk 0:02:59.9]} 1... f5 {[%clk 0:03:00]} 2. Nf3 {[%clk 0:02:59.2]} 2...
Nf6 {[%clk 0:03:00]} 3. g3 {[%clk 0:02:58.8]} 3... g6 {[%clk 0:02:59.5]} 4. Bg2
{[%clk 0:02:59.4]} 4... Bg7 {[%clk 0:02:59.6]} 5. O-O {[%clk 0:02:59.8]} 5...
O-O {[%clk 0:02:59.8]} 6. Nbd2 {[%clk 0:03:00.3]} 6... d6 {[%clk 0:02:57.2]} 7.
c3 {[%clk 0:03:00.7]} 7... Kh8 {[%clk 0:02:54.6]} 8. Re1 {[%clk 0:03:00.1]} 8...
Nc6 {[%clk 0:02:33]} 9. b4 {[%clk 0:02:58.8]} 9... a6 {[%clk 0:02:25.1]} 10. e4
{[%clk 0:02:54.2]} 10... e5 {[%clk 0:02:23.3]} 11. dxe5 {[%clk 0:02:41]} 11...
dxe5 {[%clk 0:02:21.6]} 12. Qc2 {[%clk 0:02:36]} 12... Nh5 {[%clk 0:02:08.6]}
13. a4 {[%clk 0:02:23]} 13... f4 {[%clk 0:02:07.7]} 14. Ba3 {[%clk 0:02:22]}
14... Re8 {[%clk 0:02:01]} 15. Nc4 {[%clk 0:02:16]} 15... Be6 {[%clk 0:01:50.7]}
16. Red1 {[%clk 0:02:14.6]} 16... Qc8 {[%clk 0:01:43]} 17. Qd3 {[%clk
0:01:57.8]} 17... Rd8 {[%clk 0:01:38.1]} 18. Qe2 {[%clk 0:01:57.1]} 18... Bh3
{[%clk 0:01:06.9]} 19. b5 {[%clk 0:01:51.6]} 19... Bxg2 {[%clk 0:01:05.7]} 20.
Kxg2 {[%clk 0:01:50.5]} 20... axb5 {[%clk 0:01:00.8]} 21. axb5 {[%clk
0:01:51.4]} 21... Rxd1 {[%clk 0:00:59.1]} 22. Rxd1 {[%clk 0:01:49.4]} 22... Nd8
{[%clk 0:00:58.7]} 23. Nfxe5 {[%clk 0:01:39.5]} 23... Qe6 {[%clk 0:00:41.9]} 24.
Rd5 {[%clk 0:01:22]} 24... Nf7 {[%clk 0:00:28.5]} 25. Nxf7+ {[%clk 0:01:20.7]}
25... Qxf7 {[%clk 0:00:29.4]} 26. Qd3 {[%clk 0:01:20.5]} 26... Bf6 {[%clk
0:00:17]} 27. Rd7 {[%clk 0:01:19.1]} 27... Qe6 {[%clk 0:00:16]} 28. e5 {[%clk
0:01:07.2]} 28... Bg5 {[%clk 0:00:10.6]} 29. Rxc7 {[%clk 0:00:39.9]} 29... fxg3
{[%clk 0:00:09.3]} 30. hxg3 {[%clk 0:00:39.8]} 30... Qg4 {[%clk 0:00:07.7]} 31.
Qd7 {[%clk 0:00:37.8]} 31... Nf4+ {[%clk 0:00:05]} 32. Kg1 {[%clk 0:00:26.8]}
32... Nh3+ {[%clk 0:00:04.2]} 33. Kh2 {[%clk 0:00:24.6]} 33... Qxd7 {[%clk
0:00:03.3]} 34. Rxd7 {[%clk 0:00:24.6]} 34... Nxf2 {[%clk 0:00:03.9]} 35. Rxb7
{[%clk 0:00:22.6]} 35... Ra4 {[%clk 0:00:02.9]} 36. Rc7 {[%clk 0:00:10.6]} 36...
Ng4+ {[%clk 0:00:03]} 37. Kg1 {[%clk 0:00:10.5]} 1-0

[Event "*** Titled Tuesday Blitz"]
[Site "Chess.com"]
[Date "2020.05.05"]
[Round "1"]
[White "Trankuilizer"]
[Black "Grineva_Marianna"]
[Result "1-0"]
[WhiteElo "2518"]
[BlackElo "2141"]
[TimeControl "180+1"]
[EndTime "10:07:46 PDT"]
[Termination "Trankuilizer won by resignation"]

1. e4 {[%clk 0:02:59.8]} 1... d6 {[%clk 0:02:59.5]} 2. d4 {[%clk 0:02:58.4]}
2... Nf6 {[%clk 0:02:59.6]} 3. Nc3 {[%clk 0:02:56.7]} 3... g6 {[%clk 0:02:59.8]}
4. Nf3 {[%clk 0:02:56.2]} 4... Bg7 {[%clk 0:02:58.9]} 5. Be2 {[%clk 0:02:54.7]}
5... O-O {[%clk 0:02:57]} 6. O-O {[%clk 0:02:54.6]} 6... Bg4 {[%clk 0:02:55.4]}
7. h3 {[%clk 0:02:54.3]} 7... Bxf3 {[%clk 0:02:55.3]} 8. Bxf3 {[%clk 0:02:55.2]}
8... Nc6 {[%clk 0:02:55.5]} 9. d5 {[%clk 0:02:55.2]} 9... Ne5 {[%clk 0:02:54]}
10. Be2 {[%clk 0:02:55.4]} 10... a6 {[%clk 0:02:48.2]} 11. Be3 {[%clk
0:02:53.4]} 11... b5 {[%clk 0:02:47.4]} 12. f4 {[%clk 0:02:40.4]} 12... Nc4
{[%clk 0:02:45]} 13. Bxc4 {[%clk 0:02:40.1]} 13... bxc4 {[%clk 0:02:45.9]} 14.
Bd4 {[%clk 0:02:40.5]} 14... Rb8 {[%clk 0:02:42]} 15. Rb1 {[%clk 0:02:40]} 15...
e6 {[%clk 0:02:38.9]} 16. Qe2 {[%clk 0:02:33.7]} 16... exd5 {[%clk 0:02:24.2]}
17. exd5 {[%clk 0:02:33.6]} 17... Nh5 {[%clk 0:02:08.7]} 18. Qxc4 {[%clk
0:02:28]} 18... Re8 {[%clk 0:01:48.4]} 19. Bxg7 {[%clk 0:02:27]} 19... Nxg7
{[%clk 0:01:43.9]} 20. b3 {[%clk 0:02:18]} 20... Re3 {[%clk 0:01:36.6]} 21. Rfe1
{[%clk 0:02:11.3]} 21... Rg3 {[%clk 0:01:22.3]} 22. Ne4 {[%clk 0:02:02.6]} 22...
Qh4 {[%clk 0:01:12.1]} 23. Nxg3 {[%clk 0:01:58.9]} 23... Qxg3 {[%clk 0:01:13]}
24. Qe4 {[%clk 0:01:58.4]} 24... Nh5 {[%clk 0:01:09.1]} 25. Qf3 {[%clk
0:01:56.7]} 25... Qxf4 {[%clk 0:01:06.1]} 26. Qxf4 {[%clk 0:01:56]} 26... Nxf4
{[%clk 0:01:07]} 27. Rbd1 {[%clk 0:01:56]} 27... Kf8 {[%clk 0:01:05.5]} 28. c4
{[%clk 0:01:55.3]} 28... g5 {[%clk 0:01:02.5]} 29. Kf2 {[%clk 0:01:54.4]} 29...
a5 {[%clk 0:01:01.8]} 30. Kf3 {[%clk 0:01:54.5]} 30... h6 {[%clk 0:01:00.9]} 31.
h4 {[%clk 0:01:54.1]} 31... a4 {[%clk 0:00:59.3]} 32. hxg5 {[%clk 0:01:51.5]}
32... hxg5 {[%clk 0:00:58.6]} 33. Re3 {[%clk 0:01:49.7]} 33... axb3 {[%clk
0:00:55.3]} 34. axb3 {[%clk 0:01:49.5]} 34... Ra8 {[%clk 0:00:55.2]} 35. g3
{[%clk 0:01:38.2]} 35... Ng6 {[%clk 0:00:55.1]} 36. Kg4 {[%clk 0:01:38.6]} 36...
f6 {[%clk 0:00:52]} 37. Kf5 {[%clk 0:01:23.7]} 37... Kf7 {[%clk 0:00:52.2]} 38.
Rh1 {[%clk 0:01:22.7]} 38... Kg7 {[%clk 0:00:35]} 39. b4 {[%clk 0:01:13.8]}
39... Ne5 {[%clk 0:00:32.1]} 40. c5 {[%clk 0:01:12.3]} 40... Ra4 {[%clk
0:00:31.7]} 41. Rb3 {[%clk 0:01:04.5]} 41... Ra2 {[%clk 0:00:28.7]} 42. cxd6
{[%clk 0:00:57.9]} 42... cxd6 {[%clk 0:00:27.9]} 43. Ke6 {[%clk 0:00:56]} 43...
Re2 {[%clk 0:00:27.2]} 44. Kxd6 {[%clk 0:00:51.9]} 44... Kg6 {[%clk 0:00:25.2]}
45. b5 {[%clk 0:00:50.3]} 45... Rd2 {[%clk 0:00:24.3]} 46. b6 {[%clk 0:00:48.3]}
46... Nc4+ {[%clk 0:00:21.1]} 47. Kc5 {[%clk 0:00:48]} 47... Na5 {[%clk
0:00:21.6]} 48. Rb5 {[%clk 0:00:45.7]} 48... Nb7+ {[%clk 0:00:20.5]} 49. Kc6
{[%clk 0:00:45.7]} 49... Nd8+ {[%clk 0:00:20.7]} 50. Kc7 {[%clk 0:00:43.9]}
50... Nf7 {[%clk 0:00:17.1]} 51. b7 {[%clk 0:00:44.1]} 51... Rc2+ {[%clk
0:00:16.1]} 52. Kb6 {[%clk 0:00:35.2]} 52... Ne5 {[%clk 0:00:14.9]} 53. b8=Q
{[%clk 0:00:31.4]} 53... Nd7+ {[%clk 0:00:14.9]} 54. Kb7 {[%clk 0:00:31.7]}
54... Nxb8 {[%clk 0:00:14.6]} 55. Kxb8 {[%clk 0:00:32.6]} 55... Rd2 {[%clk
0:00:14.8]} 56. Kc7 {[%clk 0:00:32.4]} 56... Rd3 {[%clk 0:00:14.2]} 57. d6
{[%clk 0:00:32.2]} 57... Rxg3 {[%clk 0:00:14]} 58. d7 {[%clk 0:00:32.5]} 58...
Rc3+ {[%clk 0:00:14.6]} 59. Kd6 {[%clk 0:00:32.6]} 59... Rd3+ {[%clk 0:00:12.7]}
60. Rd5 {[%clk 0:00:32.8]} 1-0

[Event "*** Titled Tuesday Blitz"]
[Site "Chess.com"]
[Date "2020.05.05"]
[Round "1"]
[White "johnathan113"]
[Black "alexsergeyev"]
[Result "1-0"]
[WhiteElo "2734"]
[BlackElo "2382"]
[TimeControl "180+1"]
[EndTime "10:07:47 PDT"]
[Termination "johnathan113 won on time"]

1. d4 {[%clk 0:03:00]} 1... d5 {[%clk 0:02:58.8]} 2. Nc3 {[%clk 0:02:59.6]} 2...
Bf5 {[%clk 0:02:55.4]} 3. Bf4 {[%clk 0:02:59.1]} 3... e6 {[%clk 0:02:52.4]} 4.
f3 {[%clk 0:02:55.2]} 4... Bb4 {[%clk 0:02:47.7]} 5. g4 {[%clk 0:02:53.3]} 5...
Bg6 {[%clk 0:02:46.8]} 6. e3 {[%clk 0:02:53.6]} 6... Nf6 {[%clk 0:02:40.7]} 7.
h4 {[%clk 0:02:52.1]} 7... h5 {[%clk 0:02:39]} 8. g5 {[%clk 0:02:52.2]} 8...
Nfd7 {[%clk 0:02:34.7]} 9. Bd3 {[%clk 0:02:52.6]} 9... Nf8 {[%clk 0:02:21]} 10.
Ne2 {[%clk 0:02:49.7]} 10... c5 {[%clk 0:02:16.1]} 11. a3 {[%clk 0:02:36]} 11...
Bxc3+ {[%clk 0:02:13.4]} 12. Nxc3 {[%clk 0:02:36.9]} 12... c4 {[%clk 0:02:13.3]}
13. Be2 {[%clk 0:02:28]} 13... a6 {[%clk 0:02:04.3]} 14. e4 {[%clk 0:02:22.6]}
14... Nc6 {[%clk 0:02:02.5]} 15. Qd2 {[%clk 0:02:22.9]} 15... b5 {[%clk
0:02:00.6]} 16. O-O-O {[%clk 0:02:19.4]} 16... b4 {[%clk 0:01:58.6]} 17. axb4
{[%clk 0:02:20.3]} 17... Nxb4 {[%clk 0:01:54.6]} 18. Qe3 {[%clk 0:02:20.1]}
18... Qa5 {[%clk 0:01:40.5]} 19. Kd2 {[%clk 0:02:00.5]} 19... dxe4 {[%clk
0:01:36.3]} 20. fxe4 {[%clk 0:01:59.1]} 20... Rd8 {[%clk 0:01:32.6]} 21. Ra1
{[%clk 0:01:33]} 21... Qb6 {[%clk 0:01:31.6]} 22. d5 {[%clk 0:01:15.8]} 22...
Qxe3+ {[%clk 0:01:22.8]} 23. Bxe3 {[%clk 0:01:16.7]} 23... exd5 {[%clk
0:01:21.2]} 24. exd5 {[%clk 0:01:13.5]} 24... Nxc2 {[%clk 0:01:15.8]} 25. Rxa6
{[%clk 0:01:10.3]} 25... Nxe3 {[%clk 0:01:12.6]} 26. Kxe3 {[%clk 0:01:11.2]}
26... Nd7 {[%clk 0:01:12.4]} 27. Kd4 {[%clk 0:01:08.3]} 27... O-O {[%clk
0:01:11.7]} 28. Bxc4 {[%clk 0:01:05.8]} 28... Rfe8 {[%clk 0:01:08.9]} 29. b4
{[%clk 0:01:02.1]} 29... Ne5 {[%clk 0:00:57.8]} 30. Be2 {[%clk 0:01:01.1]} 30...
Ng4 {[%clk 0:00:32.4]} 31. b5 {[%clk 0:00:51.5]} 31... Ne3 {[%clk 0:00:31.3]}
32. Bf3 {[%clk 0:00:37.2]} 32... Nc2+ {[%clk 0:00:29.3]} 33. Kc4 {[%clk
0:00:35.8]} 33... Re3 {[%clk 0:00:28]} 34. Bd1 {[%clk 0:00:26.7]} 34... Bd3+
{[%clk 0:00:26.3]} 35. Kc5 {[%clk 0:00:25]} 35... Bf5 {[%clk 0:00:17.1]} 36. Na4
{[%clk 0:00:20.9]} 36... Re5 {[%clk 0:00:06.4]} 37. Bf3 {[%clk 0:00:18.2]} 37...
Ne3 {[%clk 0:00:04.5]} 38. Rd6 {[%clk 0:00:17.1]} 38... Rc8+ {[%clk 0:00:02.7]}
39. Rc6 {[%clk 0:00:17.6]} 39... Rd8 {[%clk 0:00:01.8]} 40. Nc3 {[%clk
0:00:18.1]} 1-0

[Event "*** Titled Tuesday Blitz"]
[Site "Chess.com"]
[Date "2020.05.05"]
[Round "1"]
[White "MaxVavulin"]
[Black "korkmaz16"]
[Result "1-0"]
[WhiteElo "2611"]
[BlackElo "2291"]
[TimeControl "180+1"]
[EndTime "10:07:47 PDT"]
[Termination "MaxVavulin won by resignation"]

1. e4 {[%clk 0:03:00.9]} 1... e6 {[%clk 0:02:54.4]} 2. d4 {[%clk 0:03:00.2]}
2... d5 {[%clk 0:02:48.6]} 3. Bd3 {[%clk 0:03:00.7]} 3... dxe4 {[%clk
0:02:40.8]} 4. Bxe4 {[%clk 0:03:00.9]} 4... Nf6 {[%clk 0:02:40.6]} 5. Bf3 {[%clk
0:03:01.3]} 5... c5 {[%clk 0:02:40.7]} 6. Ne2 {[%clk 0:03:01.5]} 6... Nc6 {[%clk
0:02:40.3]} 7. Be3 {[%clk 0:03:01.3]} 7... cxd4 {[%clk 0:02:37.3]} 8. Nxd4
{[%clk 0:03:00.6]} 8... Ne5 {[%clk 0:02:36.1]} 9. Nc3 {[%clk 0:02:59.3]} 9...
Be7 {[%clk 0:02:28.1]} 10. Qe2 {[%clk 0:02:55.9]} 10... O-O {[%clk 0:02:26.8]}
11. O-O-O {[%clk 0:02:55.5]} 11... Nxf3 {[%clk 0:02:25.9]} 12. Qxf3 {[%clk
0:02:53.3]} 12... Qa5 {[%clk 0:02:10.8]} 13. g4 {[%clk 0:02:43.7]} 13... Bb4
{[%clk 0:00:50.9]} 14. g5 {[%clk 0:02:11.2]} 14... Nd5 {[%clk 0:00:38.1]} 15.
Nb3 {[%clk 0:02:07.6]} 15... Qa6 {[%clk 0:00:36.4]} 16. Nxd5 {[%clk 0:02:02.6]}
16... exd5 {[%clk 0:00:36.2]} 17. Kb1 {[%clk 0:01:40.1]} 17... Be6 {[%clk
0:00:34.9]} 18. Bd4 {[%clk 0:01:39.5]} 18... Rac8 {[%clk 0:00:33.3]} 19. Rhg1
{[%clk 0:01:26.2]} 19... b6 {[%clk 0:00:29.4]} 20. h4 {[%clk 0:00:56.5]} 20...
Qc4 {[%clk 0:00:28.6]} 21. c3 {[%clk 0:00:52]} 21... Bd6 {[%clk 0:00:27.5]} 22.
h5 {[%clk 0:00:50.9]} 22... a5 {[%clk 0:00:23.6]} 23. h6 {[%clk 0:00:43.2]}
23... a4 {[%clk 0:00:20.7]} 24. hxg7 {[%clk 0:00:31.9]} 24... Rfe8 {[%clk
0:00:20.2]} 25. Nd2 {[%clk 0:00:31.3]} 25... Qb5 {[%clk 0:00:19.8]} 26. Rh1
{[%clk 0:00:30.4]} 26... a3 {[%clk 0:00:16.9]} 27. b3 {[%clk 0:00:28.7]} 27...
Qd7 {[%clk 0:00:06.1]} 28. Rde1 {[%clk 0:00:19.5]} 28... Bf5+ {[%clk 0:00:06.4]}
29. Ka1 {[%clk 0:00:19.7]} 29... Bg6 {[%clk 0:00:06.3]} 30. Qxd5 {[%clk
0:00:17.6]} 30... Qc7 {[%clk 0:00:06.1]} 31. Nc4 {[%clk 0:00:15.5]} 31... Bc5
{[%clk 0:00:06]} 32. Bxc5 {[%clk 0:00:15.3]} 32... Qxc5 {[%clk 0:00:06.1]} 33.
Qxc5 {[%clk 0:00:14.8]} 33... bxc5 {[%clk 0:00:07]} 34. Nxa3 {[%clk 0:00:13.5]}
34... Rxe1+ {[%clk 0:00:07.1]} 35. Rxe1 {[%clk 0:00:12.9]} 35... Kxg7 {[%clk
0:00:08]} 36. Kb2 {[%clk 0:00:13.2]} 36... Rd8 {[%clk 0:00:08]} 37. Nc4 {[%clk
0:00:12.5]} 37... Rd3 {[%clk 0:00:07.9]} 38. a4 {[%clk 0:00:08.6]} 38... Rf3
{[%clk 0:00:07.7]} 39. Re2 {[%clk 0:00:08.7]} 39... Rf5 {[%clk 0:00:08]} 40. a5
{[%clk 0:00:07.6]} 40... Rd5 {[%clk 0:00:08.7]} 41. a6 {[%clk 0:00:07.5]} 41...
Rd8 {[%clk 0:00:09.6]} 42. a7 {[%clk 0:00:06.6]} 42... Ra8 {[%clk 0:00:10.3]}
43. Re7 {[%clk 0:00:06.8]} 43... Be4 {[%clk 0:00:09.9]} 44. Rc7 {[%clk 0:00:07]}
44... Rxa7 {[%clk 0:00:10.1]} 45. Rxa7 {[%clk 0:00:06.4]} 1-0